[Event "Late-Titled-Tuesday-Blitz-June-25-2024"]
[Site "Chess.com"]
[Date "2024.06.25"]
[Round "11"]
[White "artin10862"]
[Black "MagnusCarlsen"]
[Result "0-1"]
[WhiteElo "2936"]
[BlackElo "3182"]
[TimeControl "180+1"]
[EndTime "16:06:23 PDT"]
[Termination "MagnusCarlsen won by resignation"]

1. a4 {[%clk 0:03:00.9]} 1... Nf6 {[%clk 0:02:57.3]} 2. a5 {[%clk 0:02:59.6]}
2... g6 {[%clk 0:02:57.1]} 3. d4 {[%clk 0:02:59.2]} 3... Bg7 {[%clk 0:02:57.4]}
4. Nf3 {[%clk 0:02:58.8]} 4... O-O {[%clk 0:02:58.1]} 5. Bf4 {[%clk 0:02:58.6]}
5... d6 {[%clk 0:02:53]} 6. h3 {[%clk 0:02:54.9]} 6... c5 {[%clk 0:02:51.1]} 7.
dxc5 {[%clk 0:02:45.9]} 7... Ne4 {[%clk 0:02:41.7]} 8. c3 {[%clk 0:02:42]} 8...
Nxc5 {[%clk 0:02:40.9]} 9. Nbd2 {[%clk 0:02:34]} 9... Nc6 {[%clk 0:02:40.3]} 10.
e3 {[%clk 0:02:20.8]} 10... Ne6 {[%clk 0:02:30.2]} 11. a6 {[%clk 0:02:16.1]}
11... Nxf4 {[%clk 0:02:29.7]} 12. exf4 {[%clk 0:02:17]} 12... Rb8 {[%clk
0:02:29.1]} 13. axb7 {[%clk 0:02:13.7]} 13... Rxb7 {[%clk 0:02:28.6]} 14. Ra2
{[%clk 0:02:13.4]} 14... Be6 {[%clk 0:02:23.4]} 15. Ra6 {[%clk 0:02:05.7]} 15...
Nb8 {[%clk 0:02:20]} 16. Ra3 {[%clk 0:01:58.7]} 16... Rxb2 {[%clk 0:02:19.4]}
17. Bd3 {[%clk 0:01:56.2]} 17... Qb6 {[%clk 0:02:05.5]} 18. O-O {[%clk 0:01:51]}
18... a5 {[%clk 0:01:32.2]} 19. Nc4 {[%clk 0:01:37]} 19... Bxc4 {[%clk 0:01:32]}
20. Bxc4 {[%clk 0:01:37.9]} 20... e6 {[%clk 0:01:30.8]} 21. Bd3 {[%clk
0:01:22.2]} 21... Nd7 {[%clk 0:01:27]} 22. Nd2 {[%clk 0:01:15.8]} 22... d5
{[%clk 0:01:25.1]} 23. Nf3 {[%clk 0:00:54.3]} 23... Qc5 {[%clk 0:01:16]} 24. Qa4
{[%clk 0:00:52.3]} 24... Bxc3 {[%clk 0:01:12.5]} 25. Rb3 {[%clk 0:00:33]} 25...
Nb6 {[%clk 0:00:59.8]} 26. Qb5 {[%clk 0:00:23.7]} 26... Qxb5 {[%clk 0:00:59.5]}
27. Rxb5 {[%clk 0:00:24.6]} 27... Rxb5 {[%clk 0:00:59.8]} 28. Bxb5 {[%clk
0:00:22.6]} 28... a4 {[%clk 0:01:00.7]} 29. Rc1 {[%clk 0:00:22.4]} 29... Bb2
{[%clk 0:01:00.3]} 30. Rc6 {[%clk 0:00:19]} 30... a3 {[%clk 0:00:57]} 31. Rxb6
{[%clk 0:00:17.6]} 31... a2 {[%clk 0:00:57]} 32. Ra6 {[%clk 0:00:18.5]} 32...
a1=R+ {[%clk 0:00:56.2]} 33. Rxa1 {[%clk 0:00:19.4]} 33... Bxa1 {[%clk
0:00:56.8]} 34. g3 {[%clk 0:00:20.1]} 34... Rb8 {[%clk 0:00:56.1]} 35. Bf1
{[%clk 0:00:18.7]} 35... Rb4 {[%clk 0:00:55.8]} 36. Kg2 {[%clk 0:00:18.9]} 36...
Bd4 {[%clk 0:00:55.7]} 37. h4 {[%clk 0:00:18.5]} 37... Kg7 {[%clk 0:00:55]} 38.
Be2 {[%clk 0:00:13.7]} 38... Bb6 {[%clk 0:00:52.8]} 39. Ne1 {[%clk 0:00:12.7]}
39... Rb2 {[%clk 0:00:50.6]} 40. Kf3 {[%clk 0:00:12.6]} 40... f6 {[%clk
0:00:49.3]} 41. Nd3 {[%clk 0:00:12.2]} 41... Rd2 {[%clk 0:00:49]} 42. Bf1 {[%clk
0:00:12.2]} 42... Bd4 {[%clk 0:00:48.7]} 0-1

[Event "Late-Titled-Tuesday-Blitz-June-25-2024"]
[Site "Chess.com"]
[Date "2024.06.25"]
[Round "11"]
[White "Njal28"]
[Black "Jospem"]
[Result "0-1"]
[WhiteElo "3105"]
[BlackElo "3073"]
[TimeControl "180+1"]
[EndTime "16:06:27 PDT"]
[Termination "Jospem won on time"]

1. d4 {[%clk 0:02:59.5]} 1... Nf6 {[%clk 0:03:00]} 2. c4 {[%clk 0:02:58.5]} 2...
e6 {[%clk 0:03:00.5]} 3. Nf3 {[%clk 0:02:58.9]} 3... Bb4+ {[%clk 0:03:01.1]} 4.
Nc3 {[%clk 0:02:58.6]} 4... b6 {[%clk 0:03:00.9]} 5. Qb3 {[%clk 0:02:58]} 5...
a5 {[%clk 0:02:58.8]} 6. g3 {[%clk 0:02:56.7]} 6... Bb7 {[%clk 0:02:58.9]} 7.
Bg2 {[%clk 0:02:56.8]} 7... O-O {[%clk 0:02:58.3]} 8. O-O {[%clk 0:02:57.1]}
8... h6 {[%clk 0:02:54.4]} 9. Qc2 {[%clk 0:02:54.8]} 9... Bxc3 {[%clk
0:02:54.3]} 10. Qxc3 {[%clk 0:02:55.7]} 10... Be4 {[%clk 0:02:54.1]} 11. Re1
{[%clk 0:02:52.1]} 11... d6 {[%clk 0:02:47.8]} 12. Bf1 {[%clk 0:02:49.3]} 12...
Bb7 {[%clk 0:02:47.9]} 13. Nd2 {[%clk 0:02:48.4]} 13... c5 {[%clk 0:02:47.4]}
14. b3 {[%clk 0:02:35.6]} 14... Nc6 {[%clk 0:02:44.4]} 15. dxc5 {[%clk
0:02:26.8]} 15... bxc5 {[%clk 0:02:44.7]} 16. Bg2 {[%clk 0:02:21.7]} 16... Qe7
{[%clk 0:02:44.4]} 17. Bb2 {[%clk 0:02:20]} 17... Nd4 {[%clk 0:02:42.1]} 18.
Bxb7 {[%clk 0:02:07.5]} 18... Qxb7 {[%clk 0:02:43]} 19. Nf3 {[%clk 0:02:05.3]}
19... e5 {[%clk 0:02:42.4]} 20. Nxd4 {[%clk 0:01:40.7]} 20... cxd4 {[%clk
0:02:42.4]} 21. Qd3 {[%clk 0:01:36.8]} 21... Ne4 {[%clk 0:02:34.1]} 22. Ba3
{[%clk 0:01:29.1]} 22... f5 {[%clk 0:02:30.3]} 23. Rac1 {[%clk 0:01:18.7]} 23...
Rf6 {[%clk 0:02:20.5]} 24. Qf3 {[%clk 0:01:17.1]} 24... a4 {[%clk 0:02:00.7]}
25. b4 {[%clk 0:01:12.6]} 25... Rc8 {[%clk 0:01:59.6]} 26. c5 {[%clk 0:01:12.2]}
26... dxc5 {[%clk 0:02:00.1]} 27. bxc5 {[%clk 0:01:12.4]} 27... Qf7 {[%clk
0:01:59.7]} 28. Rc2 {[%clk 0:01:08.3]} 28... Kh7 {[%clk 0:01:45.5]} 29. Qd3
{[%clk 0:01:00.5]} 29... Rg6 {[%clk 0:01:27.3]} 30. Rec1 {[%clk 0:00:57.6]}
30... Rcc6 {[%clk 0:01:25.4]} 31. Rb2 {[%clk 0:00:50.6]} 31... Qd5 {[%clk
0:01:15.2]} 32. f3 {[%clk 0:00:42.3]} 32... Nxg3 {[%clk 0:01:06.3]} 33. hxg3
{[%clk 0:00:40.9]} 33... e4 {[%clk 0:01:06.8]} 34. Qd1 {[%clk 0:00:12.4]} 34...
Rxg3+ {[%clk 0:01:04.1]} 35. Kf2 {[%clk 0:00:12.6]} 35... e3+ {[%clk 0:00:35.8]}
36. Kxg3 {[%clk 0:00:04.6]} 36... f4+ {[%clk 0:00:36.3]} 37. Kg2 {[%clk
0:00:02.3]} 37... Rg6+ {[%clk 0:00:33.9]} 38. Kf1 {[%clk 0:00:01.4]} 38... Qh5
{[%clk 0:00:32.3]} 0-1

[Event "Late-Titled-Tuesday-Blitz-June-25-2024"]
[Site "Chess.com"]
[Date "2024.06.25"]
[Round "11"]
[White "nitpicker"]
[Black "protectiago"]
[Result "1-0"]
[WhiteElo "2331"]
[BlackElo "2135"]
[TimeControl "180+1"]
[EndTime "16:06:29 PDT"]
[Termination "nitpicker won on time"]

1. d4 {[%clk 0:03:00.9]} 1... Nf6 {[%clk 0:02:57]} 2. c4 {[%clk 0:02:59]} 2...
g6 {[%clk 0:02:57]} 3. Nc3 {[%clk 0:02:58.1]} 3... d5 {[%clk 0:02:57.5]} 4. Qb3
{[%clk 0:02:57.8]} 4... dxc4 {[%clk 0:02:56.9]} 5. Qxc4 {[%clk 0:02:58.7]} 5...
Bg7 {[%clk 0:02:54.5]} 6. e4 {[%clk 0:02:56.5]} 6... O-O {[%clk 0:02:51.1]} 7.
Be2 {[%clk 0:02:53.8]} 7... Na6 {[%clk 0:02:17.3]} 8. Nf3 {[%clk 0:02:32.5]}
8... c5 {[%clk 0:02:15.8]} 9. d5 {[%clk 0:02:16.2]} 9... e6 {[%clk 0:02:12.4]}
10. O-O {[%clk 0:02:15.4]} 10... exd5 {[%clk 0:02:11.7]} 11. exd5 {[%clk
0:02:15.9]} 11... b6 {[%clk 0:02:07.1]} 12. Bf4 {[%clk 0:02:07.1]} 12... Nb4
{[%clk 0:02:05.4]} 13. Rad1 {[%clk 0:01:19.8]} 13... Ba6 {[%clk 0:02:01.9]} 14.
Qb3 {[%clk 0:01:18.7]} 14... Bxe2 {[%clk 0:01:46.1]} 15. Nxe2 {[%clk 0:01:19]}
15... Nbxd5 {[%clk 0:01:14.3]} 16. Nc3 {[%clk 0:01:18.7]} 16... Nxf4 {[%clk
0:01:14.4]} 17. Rxd8 {[%clk 0:01:16.8]} 17... Raxd8 {[%clk 0:01:14.3]} 18. Rd1
{[%clk 0:01:12]} 18... Rd7 {[%clk 0:01:04.5]} 19. g3 {[%clk 0:01:10.4]} 19...
Ne6 {[%clk 0:00:40.5]} 20. Rxd7 {[%clk 0:01:06.3]} 20... Nxd7 {[%clk 0:00:40.3]}
21. Qd5 {[%clk 0:01:04.1]} 21... Nf6 {[%clk 0:00:37.9]} 22. Qb7 {[%clk
0:01:04.2]} 22... Nd4 {[%clk 0:00:23.8]} 23. Kg2 {[%clk 0:01:02.1]} 23... Nxf3
{[%clk 0:00:17.1]} 24. Kxf3 {[%clk 0:01:01.4]} 24... Ne8 {[%clk 0:00:11.8]} 25.
Qxa7 {[%clk 0:00:56.7]} 25... Nd6 {[%clk 0:00:11.6]} 26. Qxb6 {[%clk 0:00:54.8]}
26... Nc4 {[%clk 0:00:12.1]} 27. Qxc5 {[%clk 0:00:47.3]} 27... Nxb2 {[%clk
0:00:12.2]} 28. Nd5 {[%clk 0:00:45.4]} 28... Nd3 {[%clk 0:00:11.6]} 29. Ne7+
{[%clk 0:00:43.2]} 29... Kh8 {[%clk 0:00:10.7]} 30. Qc2 {[%clk 0:00:39]} 30...
Ne5+ {[%clk 0:00:08.2]} 31. Kg2 {[%clk 0:00:39.2]} 31... Re8 {[%clk 0:00:08.7]}
32. Nd5 {[%clk 0:00:37]} 32... Rd8 {[%clk 0:00:07.3]} 33. Ne3 {[%clk 0:00:36.1]}
33... h5 {[%clk 0:00:05.7]} 34. h4 {[%clk 0:00:35]} 34... Rd7 {[%clk 0:00:04.6]}
35. a4 {[%clk 0:00:34.8]} 35... Nd3 {[%clk 0:00:03.6]} 36. Kf1 {[%clk
0:00:31.9]} 36... Kh7 {[%clk 0:00:03.7]} 37. a5 {[%clk 0:00:31.5]} 37... Nb4
{[%clk 0:00:03.8]} 38. Qc4 {[%clk 0:00:30.4]} 38... Nd3 {[%clk 0:00:01.5]} 39.
a6 {[%clk 0:00:27.2]} 39... Ne5 {[%clk 0:00:01]} 40. Qb5 {[%clk 0:00:26.6]} 1-0

[Event "Late-Titled-Tuesday-Blitz-June-25-2024"]
[Site "Chess.com"]
[Date "2024.06.25"]
[Round "11"]
[White "Mops_2004"]
[Black "ansko1999"]
[Result "0-1"]
[WhiteElo "2788"]
[BlackElo "2625"]
[TimeControl "180+1"]
[EndTime "16:06:31 PDT"]
[Termination "ansko1999 won by checkmate"]

1. d4 {[%clk 0:03:00.9]} 1... d5 {[%clk 0:03:00.1]} 2. c4 {[%clk 0:03:00.5]}
2... c5 {[%clk 0:03:00.7]} 3. e3 {[%clk 0:02:57.4]} 3... Nf6 {[%clk 0:02:59.4]}
4. Nc3 {[%clk 0:02:56.8]} 4... e6 {[%clk 0:02:56.4]} 5. Nf3 {[%clk 0:02:56.4]}
5... Nc6 {[%clk 0:02:54.9]} 6. a3 {[%clk 0:02:56.1]} 6... a6 {[%clk 0:02:54.7]}
7. dxc5 {[%clk 0:02:55.6]} 7... Bxc5 {[%clk 0:02:54.3]} 8. b4 {[%clk 0:02:55.7]}
8... Ba7 {[%clk 0:02:54.9]} 9. Bb2 {[%clk 0:02:53.6]} 9... O-O {[%clk
0:02:55.3]} 10. Rc1 {[%clk 0:02:41]} 10... d4 {[%clk 0:02:45.3]} 11. exd4 {[%clk
0:02:39.9]} 11... Nxd4 {[%clk 0:02:45.8]} 12. c5 {[%clk 0:02:31.8]} 12... e5
{[%clk 0:02:41.4]} 13. Be2 {[%clk 0:02:02.8]} 13... Nxe2 {[%clk 0:02:33.3]} 14.
Qxd8 {[%clk 0:02:01.7]} 14... Rxd8 {[%clk 0:02:31.1]} 15. Nxe2 {[%clk
0:01:59.3]} 15... e4 {[%clk 0:02:22.5]} 16. Bxf6 {[%clk 0:01:58.2]} 16... gxf6
{[%clk 0:02:23.4]} 17. Nd2 {[%clk 0:01:58.3]} 17... f5 {[%clk 0:02:20.2]} 18. f3
{[%clk 0:01:42.3]} 18... Re8 {[%clk 0:02:07.2]} 19. Nc4 {[%clk 0:01:34.3]} 19...
exf3 {[%clk 0:01:29.7]} 20. gxf3 {[%clk 0:01:33.7]} 20... Be6 {[%clk 0:01:28.7]}
21. Nd6 {[%clk 0:01:12.9]} 21... Re7 {[%clk 0:01:27.5]} 22. Nd4 {[%clk
0:00:58.3]} 22... Rd8 {[%clk 0:01:09.1]} 23. Kf1 {[%clk 0:00:33.9]} 23... Bb8
{[%clk 0:00:49.2]} 24. N4xf5 {[%clk 0:00:24]} 24... Bxf5 {[%clk 0:00:36.7]} 25.
Nxf5 {[%clk 0:00:24.1]} 25... Re5 {[%clk 0:00:37.4]} 26. Ng3 {[%clk 0:00:15]}
26... Re3 {[%clk 0:00:36.4]} 27. Kg2 {[%clk 0:00:12.8]} 27... Rd2+ {[%clk
0:00:34.4]} 28. Kh3 {[%clk 0:00:12.9]} 28... Rxf3 {[%clk 0:00:33.2]} 29. c6
{[%clk 0:00:11.9]} 29... bxc6 {[%clk 0:00:27.9]} 30. Rxc6 {[%clk 0:00:12.8]}
30... Bxg3 {[%clk 0:00:22.8]} 31. hxg3 {[%clk 0:00:11]} 31... Rxa3 {[%clk
0:00:23.5]} 32. Kh4 {[%clk 0:00:03]} 32... Rd4+ {[%clk 0:00:19.1]} 33. Kg5
{[%clk 0:00:03.4]} 33... Kg7 {[%clk 0:00:14.6]} 34. Rh4 {[%clk 0:00:02.9]} 34...
Rxg3+ {[%clk 0:00:13.2]} 35. Kh5 {[%clk 0:00:02.7]} 35... Rd5# {[%clk
0:00:13.4]} 0-1

[Event "Late-Titled-Tuesday-Blitz-June-25-2024"]
[Site "Chess.com"]
[Date "2024.06.25"]
[Round "11"]
[White "TigrVShlyape"]
[Black "Hikaru"]
[Result "1-0"]
[WhiteElo "2999"]
[BlackElo "3194"]
[TimeControl "180+1"]
[EndTime "16:06:34 PDT"]
[Termination "TigrVShlyape won by resignation"]

1. d4 {[%clk 0:03:00.9]} 1... Nf6 {[%clk 0:02:56.3]} 2. Bf4 {[%clk 0:03:00.7]}
2... d5 {[%clk 0:02:56.3]} 3. e3 {[%clk 0:03:01.1]} 3... c5 {[%clk 0:02:57]} 4.
c3 {[%clk 0:03:00.8]} 4... Nc6 {[%clk 0:02:57.6]} 5. Nd2 {[%clk 0:03:00.8]} 5...
Qb6 {[%clk 0:02:46.7]} 6. Qb3 {[%clk 0:02:59.7]} 6... c4 {[%clk 0:02:46.9]} 7.
Qc2 {[%clk 0:02:59.4]} 7... g6 {[%clk 0:02:47.6]} 8. e4 {[%clk 0:02:58]} 8... e6
{[%clk 0:02:24.9]} 9. e5 {[%clk 0:02:55.6]} 9... Ng8 {[%clk 0:02:15]} 10. h4
{[%clk 0:02:54.7]} 10... h5 {[%clk 0:02:13.4]} 11. Ngf3 {[%clk 0:02:49.4]} 11...
Qa5 {[%clk 0:02:12.1]} 12. a4 {[%clk 0:02:42.8]} 12... Qc7 {[%clk 0:02:01.8]}
13. b3 {[%clk 0:02:26.1]} 13... cxb3 {[%clk 0:02:01.7]} 14. Qxb3 {[%clk
0:02:26.2]} 14... Na5 {[%clk 0:02:01.2]} 15. Qb2 {[%clk 0:02:22.1]} 15... Bd7
{[%clk 0:02:01.5]} 16. Bb5 {[%clk 0:02:15.4]} 16... Ne7 {[%clk 0:01:46.7]} 17.
O-O {[%clk 0:02:13.4]} 17... Nc8 {[%clk 0:01:44.3]} 18. Bg5 {[%clk 0:02:09.5]}
18... Nb6 {[%clk 0:01:42.4]} 19. Bf6 {[%clk 0:02:08.8]} 19... Rg8 {[%clk
0:01:42.2]} 20. Rfc1 {[%clk 0:01:59.7]} 20... Rc8 {[%clk 0:01:39.4]} 21. Qb1
{[%clk 0:01:46.7]} 21... a6 {[%clk 0:01:34.9]} 22. Bxd7+ {[%clk 0:01:41.2]}
22... Kxd7 {[%clk 0:01:29.7]} 23. Ng5 {[%clk 0:01:34.8]} 23... Bh6 {[%clk
0:01:29.5]} 24. Qb4 {[%clk 0:01:33.1]} 24... Nc6 {[%clk 0:01:29.4]} 25. Qa3
{[%clk 0:01:27.8]} 25... Ke8 {[%clk 0:01:24.4]} 26. a5 {[%clk 0:01:18]} 26...
Nd7 {[%clk 0:01:20.5]} 27. Ndf3 {[%clk 0:01:17.6]} 27... Nxf6 {[%clk 0:00:58.6]}
28. exf6 {[%clk 0:01:17]} 28... Qf4 {[%clk 0:00:58.2]} 29. Rab1 {[%clk
0:01:13.8]} 29... Rc7 {[%clk 0:00:55.8]} 30. c4 {[%clk 0:01:00.4]} 30... Qxf6
{[%clk 0:00:56]} 31. cxd5 {[%clk 0:00:59.8]} 31... exd5 {[%clk 0:00:56.9]} 32.
Qc5 {[%clk 0:00:55.6]} 32... Kd8 {[%clk 0:00:41.3]} 33. Ne5 {[%clk 0:00:50.4]}
33... Kc8 {[%clk 0:00:38.8]} 34. Rxb7 {[%clk 0:00:23.4]} 34... Kxb7 {[%clk
0:00:15.5]} 35. Qb6+ {[%clk 0:00:23.3]} 35... Kc8 {[%clk 0:00:14.9]} 36. Nxc6
{[%clk 0:00:20.8]} 36... Qd6 {[%clk 0:00:12.3]} 37. Nxf7 {[%clk 0:00:19.7]}
37... Qf4 {[%clk 0:00:10]} 38. Qb8+ {[%clk 0:00:14.7]} 38... Kd7 {[%clk
0:00:10.3]} 39. Nce5+ {[%clk 0:00:15]} 39... Ke6 {[%clk 0:00:08.7]} 40. Qb6+
{[%clk 0:00:12.9]} 1-0

[Event "Late-Titled-Tuesday-Blitz-June-25-2024"]
[Site "Chess.com"]
[Date "2024.06.25"]
[Round "11"]
[White "Frankie_Badacsonyi"]
[Black "anasta10"]
[Result "0-1"]
[WhiteElo "2511"]
[BlackElo "2643"]
[TimeControl "180+1"]
[EndTime "16:06:34 PDT"]
[Termination "anasta10 won by resignation"]

1. d4 {[%clk 0:03:00.9]} 1... Nf6 {[%clk 0:02:58.9]} 2. c4 {[%clk 0:03:01.1]}
2... g6 {[%clk 0:02:57.7]} 3. Nc3 {[%clk 0:03:00.7]} 3... c5 {[%clk 0:02:58]} 4.
d5 {[%clk 0:02:59.8]} 4... Bg7 {[%clk 0:02:57.7]} 5. e4 {[%clk 0:02:59.5]} 5...
e6 {[%clk 0:02:57.1]} 6. e5 {[%clk 0:02:46.8]} 6... Ng8 {[%clk 0:02:56.6]} 7. f4
{[%clk 0:02:46.2]} 7... d6 {[%clk 0:02:56]} 8. Nf3 {[%clk 0:02:43.6]} 8... Nh6
{[%clk 0:02:53.4]} 9. Bd3 {[%clk 0:02:36.4]} 9... exd5 {[%clk 0:02:52]} 10. cxd5
{[%clk 0:02:34.5]} 10... O-O {[%clk 0:02:49.1]} 11. O-O {[%clk 0:02:34]} 11...
Bg4 {[%clk 0:02:49.8]} 12. Re1 {[%clk 0:02:25]} 12... Re8 {[%clk 0:02:47.1]} 13.
e6 {[%clk 0:02:13.9]} 13... fxe6 {[%clk 0:02:35.2]} 14. dxe6 {[%clk 0:02:14.1]}
14... d5 {[%clk 0:02:32]} 15. e7 {[%clk 0:02:09.8]} 15... Rxe7 {[%clk
0:02:31.5]} 16. Rxe7 {[%clk 0:02:08.7]} 16... Qxe7 {[%clk 0:02:32.4]} 17. Nxd5
{[%clk 0:02:08.7]} 17... Qd6 {[%clk 0:02:18.2]} 18. Bc4 {[%clk 0:02:00.8]} 18...
Kh8 {[%clk 0:02:17.8]} 19. h3 {[%clk 0:01:57.7]} 19... Bxf3 {[%clk 0:02:01.3]}
20. Qxf3 {[%clk 0:01:58.6]} 20... Nc6 {[%clk 0:02:01.8]} 21. Be3 {[%clk
0:01:45]} 21... Nf5 {[%clk 0:01:44.8]} 22. Bf2 {[%clk 0:01:43.3]} 22... Rd8
{[%clk 0:01:35.5]} 23. Re1 {[%clk 0:01:27.3]} 23... Nfd4 {[%clk 0:01:12.7]} 24.
Qe4 {[%clk 0:00:40.6]} 24... b5 {[%clk 0:01:11.3]} 25. b3 {[%clk 0:00:32.7]}
25... bxc4 {[%clk 0:01:10.8]} 26. bxc4 {[%clk 0:00:33.6]} 26... Rf8 {[%clk
0:01:06.5]} 27. g3 {[%clk 0:00:31.9]} 27... Nf5 {[%clk 0:00:54.2]} 28. Kh2
{[%clk 0:00:30.3]} 28... Bd4 {[%clk 0:00:49.3]} 29. Bxd4+ {[%clk 0:00:29.2]}
29... Ncxd4 {[%clk 0:00:50]} 30. Rb1 {[%clk 0:00:25.8]} 30... Rb8 {[%clk
0:00:17.2]} 31. Re1 {[%clk 0:00:08.7]} 31... Ng7 {[%clk 0:00:12.4]} 32. h4
{[%clk 0:00:06.1]} 32... Re8 {[%clk 0:00:11.6]} 33. Qb1 {[%clk 0:00:01.5]} 33...
Rxe1 {[%clk 0:00:09.5]} 34. Qxe1 {[%clk 0:00:02.4]} 34... Nf3+ {[%clk
0:00:09.7]} 0-1

[Event "Late-Titled-Tuesday-Blitz-June-25-2024"]
[Site "Chess.com"]
[Date "2024.06.25"]
[Round "11"]
[White "ChristopherYoo"]
[Black "Msb2"]
[Result "0-1"]
[WhiteElo "3042"]
[BlackElo "3088"]
[TimeControl "180+1"]
[EndTime "16:06:38 PDT"]
[Termination "Msb2 won by checkmate"]

1. e4 {[%clk 0:03:00.9]} 1... e6 {[%clk 0:03:00.4]} 2. d4 {[%clk 0:03:00]} 2...
d5 {[%clk 0:03:01.1]} 3. Nc3 {[%clk 0:03:00.1]} 3... Nf6 {[%clk 0:03:01.3]} 4.
Bg5 {[%clk 0:02:58.7]} 4... dxe4 {[%clk 0:03:01.7]} 5. Nxe4 {[%clk 0:02:59.6]}
5... Be7 {[%clk 0:03:02.2]} 6. Bxf6 {[%clk 0:02:59.8]} 6... Bxf6 {[%clk
0:03:03.1]} 7. Nf3 {[%clk 0:03:00.2]} 7... Nd7 {[%clk 0:03:04]} 8. Bc4 {[%clk
0:02:59.8]} 8... O-O {[%clk 0:03:01.5]} 9. Qe2 {[%clk 0:02:59.7]} 9... Be7
{[%clk 0:02:57.2]} 10. O-O-O {[%clk 0:02:58.7]} 10... c6 {[%clk 0:02:57.7]} 11.
h4 {[%clk 0:02:57.7]} 11... b5 {[%clk 0:02:57.4]} 12. Bd3 {[%clk 0:02:57.4]}
12... Qa5 {[%clk 0:02:55.1]} 13. Kb1 {[%clk 0:02:56.9]} 13... Bb7 {[%clk
0:02:52.2]} 14. Neg5 {[%clk 0:02:47.3]} 14... Nf6 {[%clk 0:02:18.5]} 15. Ne5
{[%clk 0:02:16.5]} 15... c5 {[%clk 0:02:04.4]} 16. dxc5 {[%clk 0:02:02.2]} 16...
Bd5 {[%clk 0:01:59.2]} 17. b3 {[%clk 0:01:43.6]} 17... Bxc5 {[%clk 0:01:37]} 18.
Rh3 {[%clk 0:01:34.6]} 18... Rad8 {[%clk 0:01:27.3]} 19. Rg3 {[%clk 0:01:11.2]}
19... h6 {[%clk 0:01:21.4]} 20. Ng4 {[%clk 0:00:57.8]} 20... Nxg4 {[%clk
0:01:01.8]} 21. Qxg4 {[%clk 0:00:44.6]} 21... f5 {[%clk 0:01:01.6]} 22. Qh5
{[%clk 0:00:44.6]} 22... Bd4 {[%clk 0:00:43.8]} 23. Bxf5 {[%clk 0:00:25.3]}
23... exf5 {[%clk 0:00:44.7]} 24. Rxd4 {[%clk 0:00:25.1]} 24... Bxb3 {[%clk
0:00:45.1]} 25. axb3 {[%clk 0:00:20.3]} 25... Rxd4 {[%clk 0:00:45.4]} 26. Nh3
{[%clk 0:00:06.6]} 26... Rfd8 {[%clk 0:00:43.8]} 27. Rd3 {[%clk 0:00:02.1]}
27... Rxd3 {[%clk 0:00:44]} 28. cxd3 {[%clk 0:00:03]} 28... Qc3 {[%clk
0:00:35.6]} 29. Nf4 {[%clk 0:00:01.8]} 29... Qxb3+ {[%clk 0:00:27.7]} 30. Kc1
{[%clk 0:00:02.2]} 30... Rc8+ {[%clk 0:00:20.9]} 31. Kd2 {[%clk 0:00:02.3]}
31... Qb2+ {[%clk 0:00:18.1]} 32. Ke3 {[%clk 0:00:02.6]} 32... Qc1+ {[%clk
0:00:11.2]} 33. Kf3 {[%clk 0:00:01.4]} 33... Qd1+ {[%clk 0:00:11.8]} 34. Ne2
{[%clk 0:00:01.9]} 34... Qxd3+ {[%clk 0:00:12.2]} 35. Kf4 {[%clk 0:00:02.5]}
35... Rc4+ {[%clk 0:00:09.8]} 36. Ke5 {[%clk 0:00:02.9]} 36... Qe4+ {[%clk
0:00:10.3]} 37. Kd6 {[%clk 0:00:02]} 37... Rc6+ {[%clk 0:00:11.2]} 38. Kd7
{[%clk 0:00:02.4]} 38... Qe6+ {[%clk 0:00:12.1]} 39. Kd8 {[%clk 0:00:03.2]}
39... Rc8# {[%clk 0:00:13]} 0-1

[Event "Late-Titled-Tuesday-Blitz-June-25-2024"]
[Site "Chess.com"]
[Date "2024.06.25"]
[Round "11"]
[White "hoshiboshi"]
[Black "shirovin"]
[Result "0-1"]
[WhiteElo "2232"]
[BlackElo "2118"]
[TimeControl "180+1"]
[EndTime "16:06:39 PDT"]
[Termination "shirovin won by resignation"]

1. e4 {[%clk 0:02:55.1]} 1... c5 {[%clk 0:02:58.9]} 2. Nf3 {[%clk 0:02:55.3]}
2... d6 {[%clk 0:02:59.3]} 3. d4 {[%clk 0:02:55.8]} 3... cxd4 {[%clk 0:02:59.9]}
4. Nxd4 {[%clk 0:02:56.6]} 4... Nf6 {[%clk 0:03:00]} 5. Nc3 {[%clk 0:02:57.1]}
5... a6 {[%clk 0:03:00.5]} 6. Be2 {[%clk 0:02:57.5]} 6... e5 {[%clk 0:02:59.9]}
7. Nb3 {[%clk 0:02:57.7]} 7... Be7 {[%clk 0:03:00.2]} 8. O-O {[%clk 0:02:58.3]}
8... O-O {[%clk 0:02:59.7]} 9. Re1 {[%clk 0:02:58.9]} 9... Be6 {[%clk
0:02:53.2]} 10. Bf3 {[%clk 0:02:59.1]} 10... Nbd7 {[%clk 0:02:52.3]} 11. a4
{[%clk 0:02:59.3]} 11... Qc7 {[%clk 0:02:50]} 12. a5 {[%clk 0:02:59.2]} 12...
Rac8 {[%clk 0:02:41.9]} 13. Be3 {[%clk 0:02:55.4]} 13... Nc5 {[%clk 0:02:36.6]}
14. Nxc5 {[%clk 0:02:46.1]} 14... dxc5 {[%clk 0:02:35.4]} 15. Nd5 {[%clk
0:02:30.8]} 15... Qd8 {[%clk 0:02:16.5]} 16. c4 {[%clk 0:02:25.9]} 16... Bxd5
{[%clk 0:02:11.8]} 17. exd5 {[%clk 0:02:23.7]} 17... e4 {[%clk 0:02:09.1]} 18.
Be2 {[%clk 0:02:10.3]} 18... Bd6 {[%clk 0:02:08.7]} 19. Bd2 {[%clk 0:01:59.4]}
19... Be5 {[%clk 0:02:07.7]} 20. Bc3 {[%clk 0:01:59.1]} 20... Re8 {[%clk
0:02:06.7]} 21. Bxe5 {[%clk 0:01:56.5]} 21... Rxe5 {[%clk 0:02:06]} 22. Bf1
{[%clk 0:01:54.8]} 22... Qd6 {[%clk 0:02:02]} 23. Ra3 {[%clk 0:01:52.6]} 23...
h5 {[%clk 0:01:52.7]} 24. h4 {[%clk 0:01:45.1]} 24... g5 {[%clk 0:01:34.8]} 25.
Rg3 {[%clk 0:01:34.3]} 25... Ng4 {[%clk 0:01:15.6]} 26. Rxg4 {[%clk 0:01:26]}
26... hxg4 {[%clk 0:01:14.2]} 27. Qxg4 {[%clk 0:01:26]} 27... Rce8 {[%clk
0:01:02.2]} 28. Re3 {[%clk 0:01:10.6]} 28... Qe7 {[%clk 0:00:41.2]} 29. Be2
{[%clk 0:00:40]} 29... Kg7 {[%clk 0:00:35.2]} 30. Rg3 {[%clk 0:00:33.4]} 30...
f6 {[%clk 0:00:26]} 31. f4 {[%clk 0:00:14.5]} 31... exf3 {[%clk 0:00:08.9]} 32.
Bxf3 {[%clk 0:00:14.4]} 32... Re1+ {[%clk 0:00:08.4]} 33. Kh2 {[%clk 0:00:13.9]}
33... Qe5 {[%clk 0:00:08.3]} 34. Qh5 {[%clk 0:00:07.6]} 34... Rh8 {[%clk
0:00:07.3]} 35. Qg4 {[%clk 0:00:01]} 0-1